[Event "FIDE Womens Candidates 2024"]
[Site "Toronto"]
[Date "2024.04.17"]
[Round "11.1"]
[White "Lei, Tingjie"]
[Black "Muzychuk, Anna"]
[Result "1/2-1/2"]
[ECO "C54"]
[WhiteElo "2550"]
[BlackElo "2520"]
[Annotator "TA"]
[PlyCount "105"]
[EventDate "2024.04.02"]
[EventType "tourn"]
[EventCountry "CAN"]
[SourceTitle "playchess.com"]
[Source "ChessBase"]
[SourceQuality "1"]
[TimeControl "40/5400+30:1800+30"]

{[%evp 31,105,-8,0,-25,-9,-31,-35,-24,80,64,52,68,34,-54,-48,-50,-82,-78,-62,-72,-66,-54,-56,-73,-62,-55,-75,-103,-33,-143,-105,-173,-90,-116,-119,-114,-72,-168,-137,-111,-111,-120,0,0,0,-149,-134,-140,-119,-130,-116,-118,-98,-126,0,0,0,0,0,0,0,0,0,0,0,0,0,0,0,0,0,0,0,0,0,0]} 1. e4 {[%emt 0:00:13]} e5 {[%emt 0:00:07]} 2. Nf3 {[%emt 0:00:05]} Nc6 {[%emt 0:00:05]} 3. Bc4 {[%emt 0:00:16]} Bc5 {[%emt 0:00:09]} 4. d3 {[%emt 0:00:21]} Nf6 {[%emt 0:00:13]} 5. O-O {[%emt 0:00:29]} d6 {[%emt 0:00:42]} 6. c3 {[%emt 0:00:08]} a5 {[%emt 0:00:38] C54: Giuoco Piano: 4 c3 Nf6, main lines with 5 d4 and 5 d3.} 7. Nbd2 {[%emt 0:01:44]} O-O {[%emt 0:01:27]} 8. Re1 {[%emt 0:00:00]} Be6 {[%emt 0:01:27]} 9. Bb5 {[%emt 0:00:04]} Qb8 {[%emt 0:01:22]} 10. Nf1 {[%emt 0:00:09]} Qa7 {[%emt 0:02:46]} 11. Re2 {[%emt 0:00:10]} a4 {[%emt 0:05:00]} 12. h3 {[%emt 0:00:07]} Qa5 {[%emt 0:02:30]} 13. Bxc6 {[%emt 0:00:07]} bxc6 {[%emt 0:00:05]} 14. Ng5 {[%emt 0:00:07]} Bb6 $146 {[%emt 0:12:34]} ({Predecessor:} 14... Bd7 15. Ng3 Rfb8 16. Nf3 Be6 17. Rc2 h6 18. Bd2 Qa7 19. Qe2 Kh7 20. c4 Ng8 {½-½ Cvak,R (2386)-Del Monaco,A (2330) EU-ch 2022 sf09 email}) 15. Ng3 {[%emt 0:07:28]} h6 {[%emt 0:04:28]} 16. Nf3 {[%emt 0:02:27]} Rfd8 {[%emt 0:06:21]} 17. Bd2 {[%emt 0:02:13]} Qa6 {[%emt 0:05:23]} 18. Qc1 {[%emt 0:15:41]} Qxd3 {[%emt 0:10:06]} 19. Bxh6 $1 {[%emt 0:01:14]} gxh6 {[%emt 0:14:29]} (19... Nh7 $11 {keeps the balance.}) 20. Qxh6 $16 {[%emt 0:00:38]} Ne8 $1 {[%emt 0:00:20]} 21. Rd2 {[%emt 0:06:03]} Qc4 $1 {[%emt 0:00:12] [#]} 22. Nxe5 {[%emt 0:18:59]} (22. Ng5 $1 $14) 22... dxe5 $15 {[%emt 0:07:13]} 23. Rxd8 {[%emt 0:02:25]} Rxd8 {[%emt 0:00:02]} 24. Qg5+ {[%emt 0:00:09]} Kf8 $1 {[%emt 0:00:01]} 25. Qxd8 {[%emt 0:00:10]} a3 $1 {[%emt 0:00:52]} 26. Qd2 $1 {[%emt 0:07:12]} axb2 {[%emt 0:00:41]} 27. Qxb2 {[%emt 0:00:06]} Qd3 {[%emt 0:00:32]} 28. Kh2 {[%emt 0:06:33]} Nd6 {[%emt 0:01:48]} 29. Re1 {[%emt 0:01:56]} Nb5 {[%emt 0:06:57]} (29... Nc4 $17 30. Qb4+ Ke8) 30. c4 {[%emt 0:09:53]} (30. Rc1 $15) 30... Qc3 {[%emt 0:02:43]} (30... Bxc4 31. Qxe5 Be6 32. Qf6 $11) 31. Qe2 {[%emt 0:04:55]} (31. Qxc3 $17 {was called for.} Nxc3 32. f3) 31... Bxc4 {[%emt 0:06:03]} (31... Nd6 $19 32. Rd1 Qxc4 33. Qxc4 Bxc4) 32. Qg4 $17 {[%emt 0:02:29]} Nd6 $1 {[%emt 0:03:45]} (32... Qxe1 33. Qc8+ Ke7 34. Nf5+ Kf6 35. Qh8+ Ke6 36. Qd8) 33. Qg5 {[%emt 0:08:19]} Qxe1 {[%emt 0:03:35]} 34. Nf5 {[%emt 0:02:09]} (34. Qd8+ $17 Ne8 35. Nf5) 34... Nxf5 $19 {[%emt 0:00:24]} (34... Bxf2 35. Qd8+ Ne8 36. Qe7+ Kg8 37. Qg5+ (37. Qxe8+ Kh7 38. h4 Qg1+ 39. Kh3 Qh1+ 40. Kg4 Qxg2+) 37... Kf8 38. Qh6+ Kg8 39. Ne7#) 35. Qd8+ {[%emt 0:00:04]} Kg7 {[%emt 0:00:04]} 36. Qg5+ {[%emt 0:00:04]} Kf8 {[%emt 0:00:19]} 37. Qd8+ $1 {[%emt 0:00:04]} Kg7 {[%emt 0:00:04]} 38. Qg5+ $1 {[%emt 0:00:04]} Kh8 {[%emt 0:01:27]} 39. exf5 {[%emt 0:01:56] [#]} f6 $1 {[%emt 0:02:22]} ({Of course not} 39... Bxf2 $6 40. Qh6+ Kg8 41. Qg5+ Kh7 42. Qh5+ Kg7 43. Qg5+ Kh7 44. Qh5+ Kg7 45. Qg5+ Kh7 $11) (39... Bxa2 40. f6) (39... Qxf2 $6 40. Qh6+ Kg8 41. Qg5+ Kh7 42. Qh5+ Kg8 43. Qg5+ Kh7 44. Qh5+ Kg8 45. Qg5+ $11) 40. Qxf6+ {[%emt 0:00:00]} Kg8 {[%emt 0:00:00]} 41. Qg6+ {[%emt 0:00:35]} Kf8 {[%emt 0:00:26]} 42. Qf6+ {[%emt 0:01:18] [#]} Bf7 {[%emt 0:21:21]} (42... Ke8 $1 $17 43. Qxc6+ Kd8 44. Qxc4 Kc8 (44... Bxf2 45. Qg8+ Ke7 46. Qe6+ Kd8 47. Qd5+ Ke7 48. Qe6+ Kd8 49. Qd5+ Kc8 50. Qa8+ Kd7 51. Qd5+ Ke7 52. Qe6+ $11) (44... Qxf2 45. Qg8+ Ke7 46. Qe6+ Kd8 47. Qg8+ Ke7 48. Qe6+ Kd8 49. Qg8+ $11)) 43. Qd8+ $11 {[%emt 0:00:06]} Be8 {[%emt 0:00:31]} 44. Qf6+ {[%emt 0:00:05]} Kg8 {[%emt 0:00:21]} 45. Qe7 $1 {[%emt 0:02:28]} Bh5 {[%emt 0:03:16]} 46. Qg5+ {[%emt 0:01:38]} Kf8 {[%emt 0:01:09]} 47. Qf6+ $1 {[%emt 0:01:28]} Ke8 {[%emt 0:01:18]} 48. Qxc6+ {[%emt 0:00:08]} Kd8 {[%emt 0:05:12]} 49. Qd5+ $1 {[%emt 0:00:09]} Kc8 {[%emt 0:00:12]} 50. Qa8+ {[%emt 0:00:06]} Kd7 {[%emt 0:00:03]} 51. Qd5+ {[%emt 0:00:05]} Kc8 {[%emt 0:00:11]} 52. Qa8+ {[%emt 0:00:12]} Kd7 {[%emt 0:00:10]} 53. Qd5+ {[%emt 0:00:10]} 1/2-1/2

[Event "FIDE Womens Candidates 2024"]
[Site "Toronto"]
[Date "2024.04.21"]
[Round "14.3"]
[White "Lei, Tingjie"]
[Black "Koneru, Humpy"]
[Result "0-1"]
[ECO "E24"]
[WhiteElo "2550"]
[BlackElo "2546"]
[Annotator "TA"]
[PlyCount "124"]
[EventDate "2024.04.02"]
[EventType "tourn"]
[EventCountry "CAN"]
[SourceTitle "playchess.com"]
[Source "ChessBase"]
[SourceQuality "1"]
[TimeControl "40/5400+30:1800+30"]

{[%evp 58,124,-32,-52,-33,-214,-218,-390,-388,-414,-416,-531,-524,-517,-467,-404,-286,-401,-454,-464,-458,-565,-535,-604,-595,-726,-653,-655,-784,-706,-646,-858,-858,-639,-885,-895,-733,-879,-739,-1050,-1014,-912,-701,-1460,-1044,-1021,-987,-29973,-29974,-29979,-29979,-29984,-29985,-29987,-29988,-29986,-29987,-29986,-29986,-29987,-29988,-29988,-29989,-29989,-29989,-29993,-29990,-29990,-29991]} 1. d4 {[%emt 0:00:04]} Nf6 {[%emt 0:00:14]} 2. c4 {[%emt 0:00:05]} e6 {[%emt 0:00:17]} 3. Nc3 {[%emt 0:00:07]} Bb4 {[%emt 0:00:36]} 4. a3 {[%emt 0:00:17]} Bxc3+ {[%emt 0:00:54]} 5. bxc3 {[%emt 0:00:05]} b6 {[%emt 0:07:10]} 6. f3 {[%emt 0:00:06]} d6 {[%emt 0:09:09]} 7. e4 {[%emt 0:00:56] E24: Nimzo-Indian: Sämisch: Unusual Black 5th moves and 5...c5 sidelines.} Nc6 {[%emt 0:00:50]} 8. Bd3 {[%emt 0:01:51]} Na5 {[%emt 0:02:44]} 9. Bg5 {[%emt 0:01:48]} h6 {[%emt 0:00:58]} 10. Bh4 {[%emt 0:00:05]} g5 {[%emt 0:10:18]} 11. Bf2 {[%emt 0:00:04]} Ba6 {[%emt 0:01:32]} 12. h4 {[%emt 0:00:07]} Rg8 {[%emt 0:07:48]} 13. Ne2 $146 {[%emt 0:00:05]} ({Predecessor:} 13. hxg5 hxg5 14. Ne2 Qe7 15. c5 Bxd3 16. Qxd3 dxc5 17. dxc5 Nd7 18. cxb6 axb6 19. Rd1 {1-0 Wei,Y (2722)-Dominguez Perez,L (2739) Global Chess League rapid 2023 (10.3)}) 13... Nd7 {[%emt 0:04:27]} 14. c5 {[%emt 0:00:39]} Bxd3 {[%emt 0:02:22]} 15. Qxd3 {[%emt 0:00:06]} dxc5 {[%emt 0:02:34]} 16. e5 {[%emt 0:00:08]} Qe7 {[%emt 0:02:16]} 17. hxg5 {[%emt 0:02:23]} hxg5 {[%emt 0:01:23]} 18. Qa6 {[%emt 0:02:45]} c4 {[%emt 0:02:45]} 19. Ng3 {[%emt 0:01:01]} c6 {[%emt 0:05:23]} 20. Ne4 {[%emt 0:00:06]} Kd8 {[%emt 0:02:40]} 21. Nd6 {[%emt 0:02:00]} Kc7 {[%emt 0:03:23]} 22. Rh7 {[%emt 0:03:57]} Nb8 {[%emt 0:03:07]} 23. Qxa5 {[%emt 0:01:12]} bxa5 {[%emt 0:00:02]} 24. Rb1 {[%emt 0:00:25]} Nd7 {[%emt 0:05:09]} 25. Rb7+ {[%emt 0:00:50]} Kd8 {[%emt 0:00:02]} 26. Nxf7+ {[%emt 0:43:30]} Kc8 {[%emt 0:00:26]} 27. Nd6+ {[%emt 0:00:16]} Qxd6 {[%emt 0:00:43]} 28. exd6 {[%emt 0:00:06]} Kxb7 {[%emt 0:00:06]} 29. Rxd7+ {[%emt 0:00:04]} Ka6 {[%emt 0:01:58]} 30. Re7 {[%emt 0:08:22]} Kb5 {[%emt 0:14:44]} 31. Rxe6 $2 {[%emt 0:10:18]} (31. d7 $15) 31... Ka4 $19 {[%emt 0:00:22]} 32. Re5 $2 {[%emt 0:10:22]} (32. Kd2 {might work better.} Rae8 (32... Rad8 33. d5 $11) 33. Rxe8 Rxe8 34. Bg3 Kxa3 35. Kc2) 32... Rad8 $19 {[%emt 0:01:11]} (32... Kxa3 33. Rxa5+ Kb3 34. Kd2 $11) 33. Kd2 {[%emt 0:01:38]} Rxd6 {[%emt 0:01:34]} 34. Rc5 {[%emt 0:06:24]} g4 {[%emt 0:02:31]} (34... Kxa3 35. Rxa5+ Kb3 36. Rxa7 $17) 35. f4 {[%emt 0:00:34]} g3 {[%emt 0:01:26]} (35... Kxa3 36. Rxa5+ Kb2 37. Rxa7 $19) 36. Be3 {[%emt 0:02:24]} Rh6 {[%emt 0:03:03]} (36... Kxa3 37. Kc2 Ka4 38. Rxc4+ Kb5 39. Rc5+ Ka6 40. f5 $19) 37. Ke2 {[%emt 0:00:47]} (37. Kc2 $142 Rh2 (37... Kxa3 38. Rxa5#) 38. Rxc4+ Kb5 39. Kd3) 37... Kxa3 $19 {[%emt 0:00:55]} 38. Rxa5+ {[%emt 0:00:15]} Kb3 {[%emt 0:00:27]} 39. d5 {[%emt 0:00:57]} Kxc3 {[%emt 0:00:44]} 40. f5 {[%emt 0:00:00]} Re8 {[%emt 0:00:00]} 41. dxc6 {[%emt 0:04:55]} Rxc6 {[%emt 0:04:31]} 42. Kf3 {[%emt 0:00:08]} a6 {[%emt 0:02:34]} 43. Bf4 {[%emt 0:06:31]} Kb2 {[%emt 0:04:52]} 44. Kxg3 {[%emt 0:01:43]} c3 {[%emt 0:01:00]} 45. Ra4 {[%emt 0:07:23]} c2 {[%emt 0:02:54]} 46. Kf2 {[%emt 0:01:53]} c1=Q {[%emt 0:05:20]} 47. Bxc1+ {[%emt 0:00:04]} Kxc1 {[%emt 0:00:05]} 48. g4 {[%emt 0:01:59]} Kb2 {[%emt 0:03:20]} 49. Rf4 {[%emt 0:06:42]} Rf8 {[%emt 0:02:08]} 50. Kg3 {[%emt 0:00:34]} Rc5 {[%emt 0:02:16]} 51. Kh4 {[%emt 0:01:18]} a5 {[%emt 0:01:30]} 52. Kh5 {[%emt 0:01:54]} Ra8 {[%emt 0:01:07]} 53. g5 {[%emt 0:01:47]} a4 {[%emt 0:00:17]} 54. g6 {[%emt 0:00:59]} a3 {[%emt 0:00:51]} 55. Kh6 {[%emt 0:00:06]} a2 {[%emt 0:00:38]} 56. Rf2+ {[%emt 0:00:48]} Rc2 {[%emt 0:00:17]} 57. Rf1 {[%emt 0:00:04]} Rf8 {[%emt 0:01:30]} 58. g7 {[%emt 0:01:05]} Rh2+ {[%emt 0:00:15]} (58... a1=R $2 59. gxf8=Q (59. gxf8=R $2 Rxf1 60. Rb8+ Ka3 $19) 59... Rxf1 60. Qb4+ Kc1 61. Qa3+ Kd2 62. Qa5+ Kd1 63. Qa4 $18) 59. Kg6 {[%emt 0:00:43]} Rg2+ {[%emt 0:00:14]} (59... a1=R $2 60. gxf8=Q (60. gxf8=R $2 Rxf1 61. Ra8 Rhf2 $19) 60... Rg2+ 61. Kh5 Rxf1 62. Qb4+ Ka1 63. Qa4+ Ra2 64. Qd4+ Rb2 65. f6 $18) 60. Kh7 {[%emt 0:01:05]} Rf7 {[%emt 0:01:20]} (60... a1=R $2 {perishes.} 61. gxf8=Q (61. gxf8=R $2 {too greedy.} Rxf1 62. Rf6 Rg5 $19) 61... Rxf1 62. Qb4+ Ka1 63. Qd4+ (63. Qa5+ Ra2 $18) 63... Rb2 64. f6 $18) 61. Kh8 {[%emt 0:01:13]} a1=Q {[%emt 0:01:43]} 62. Rxa1 {[%emt 0:00:05]} Kxa1 {[%emt 0:00:04]} 0-1